[Event "Early-Titled-Tuesday-Blitz-January-23-2024"]
[Site "Chess.com"]
[Date "2024.01.23"]
[Round "9"]
[White "carloseduar100"]
[Black "JiiHart"]
[Result "1-0"]
[WhiteElo "2293"]
[BlackElo "2143"]
[TimeControl "180+1"]
[EndTime "9:45:20 PST"]
[Termination "carloseduar100 won by resignation"]

1. e4 {[%clk 0:03:00.9]} 1... c5 {[%clk 0:02:58.4]} 2. Nf3 {[%clk 0:03:00.2]}
2... Nc6 {[%clk 0:02:58.6]} 3. d3 {[%clk 0:03:00.4]} 3... e6 {[%clk 0:02:55.5]}
4. g3 {[%clk 0:03:01.3]} 4... d5 {[%clk 0:02:55.7]} 5. Bg2 {[%clk 0:03:02.2]}
5... dxe4 {[%clk 0:02:55.6]} 6. dxe4 {[%clk 0:03:03.1]} 6... Qxd1+ {[%clk
0:02:55.4]} 7. Kxd1 {[%clk 0:03:04]} 7... Nf6 {[%clk 0:02:55.5]} 8. Nbd2 {[%clk
0:02:51.5]} 8... Be7 {[%clk 0:02:54.5]} 9. c3 {[%clk 0:02:49.9]} 9... O-O {[%clk
0:02:53.6]} 10. Kc2 {[%clk 0:02:49.2]} 10... Rd8 {[%clk 0:02:48.8]} 11. Re1
{[%clk 0:02:44.1]} 11... Bd7 {[%clk 0:02:36.8]} 12. e5 {[%clk 0:02:37.4]} 12...
Nd5 {[%clk 0:02:29.8]} 13. Nc4 {[%clk 0:02:34.9]} 13... Be8 {[%clk 0:02:20.3]}
14. h4 {[%clk 0:02:30.9]} 14... Rac8 {[%clk 0:02:03.4]} 15. Bg5 {[%clk
0:02:27.7]} 15... b5 {[%clk 0:01:52.2]} 16. Bxe7 {[%clk 0:02:26.3]} 16... Ncxe7
{[%clk 0:01:47.4]} 17. Nd6 {[%clk 0:02:26.5]} 17... Rb8 {[%clk 0:01:41.9]} 18.
Rad1 {[%clk 0:02:25.6]} 18... a5 {[%clk 0:01:25.1]} 19. b3 {[%clk 0:02:23.4]}
19... Bc6 {[%clk 0:01:16.7]} 20. Ng5 {[%clk 0:02:22.2]} 20... a4 {[%clk
0:00:48.4]} 21. Ngxf7 {[%clk 0:02:19.8]} 21... axb3+ {[%clk 0:00:42.9]} 22. axb3
{[%clk 0:02:18.5]} 22... Rf8 {[%clk 0:00:36.9]} 23. f4 {[%clk 0:02:18.1]} 23...
Rxf7 {[%clk 0:00:35.5]} 24. Nxf7 {[%clk 0:02:17.3]} 24... Kxf7 {[%clk
0:00:36.4]} 25. Ra1 {[%clk 0:02:06.2]} 25... Nf5 {[%clk 0:00:36]} 26. Ra7+
{[%clk 0:02:01.6]} 26... Kg6 {[%clk 0:00:33.1]} 27. Bxd5 {[%clk 0:01:40.2]}
27... Bxd5 {[%clk 0:00:32.6]} 28. Rg1 {[%clk 0:01:36.7]} 28... Rb7 {[%clk
0:00:20.4]} 29. h5+ {[%clk 0:01:28.3]} 29... Kxh5 {[%clk 0:00:20]} 30. g4+
{[%clk 0:01:26.1]} 30... Kh6 {[%clk 0:00:11.9]} 31. gxf5 {[%clk 0:01:25.3]}
31... Rxa7 {[%clk 0:00:11.7]} 32. fxe6 {[%clk 0:01:18.3]} 32... Re7 {[%clk
0:00:11]} 33. f5 {[%clk 0:01:16.7]} 33... Bxe6 {[%clk 0:00:08.5]} 34. fxe6
{[%clk 0:01:14.9]} 34... g5 {[%clk 0:00:08.9]} 35. Kd3 {[%clk 0:01:13.7]} 35...
Rxe6 {[%clk 0:00:09.2]} 36. Ke4 {[%clk 0:01:14]} 36... Kg6 {[%clk 0:00:09.8]}
37. Kd5 {[%clk 0:01:13.5]} 37... Kf7 {[%clk 0:00:10.2]} 38. Rxg5 {[%clk
0:01:09.9]} 38... h6 {[%clk 0:00:07.2]} 39. Rh5 {[%clk 0:01:06.5]} 39... Kg6
{[%clk 0:00:07.2]} 40. Kxe6 {[%clk 0:00:55.3]} 40... Kxh5 {[%clk 0:00:06.7]} 41.
Kd6 {[%clk 0:00:55.9]} 41... Kg4 {[%clk 0:00:05.2]} 42. e6 {[%clk 0:00:55.6]}
42... h5 {[%clk 0:00:06]} 43. e7 {[%clk 0:00:55.8]} 43... h4 {[%clk 0:00:06.9]}
44. e8=Q {[%clk 0:00:55.6]} 44... h3 {[%clk 0:00:07.8]} 45. Kxc5 {[%clk
0:00:54.8]} 45... h2 {[%clk 0:00:07.4]} 46. Qe1 {[%clk 0:00:54.3]} 1-0

[Event "Early-Titled-Tuesday-Blitz-January-23-2024"]
[Site "Chess.com"]
[Date "2024.01.23"]
[Round "9"]
[White "stepanosinovsky"]
[Black "AnaKuchava"]
[Result "1-0"]
[WhiteElo "2366"]
[BlackElo "2215"]
[TimeControl "180+1"]
[EndTime "9:45:21 PST"]
[Termination "stepanosinovsky won by resignation"]

1. e4 {[%clk 0:02:51.5]} 1... c5 {[%clk 0:02:57.1]} 2. Nf3 {[%clk 0:02:48.2]}
2... d6 {[%clk 0:02:56.8]} 3. d4 {[%clk 0:02:45.1]} 3... cxd4 {[%clk 0:02:56.3]}
4. Nxd4 {[%clk 0:02:43.1]} 4... Nf6 {[%clk 0:02:54.6]} 5. Nc3 {[%clk 0:02:43.6]}
5... Nc6 {[%clk 0:02:53.7]} 6. Be3 {[%clk 0:02:38.9]} 6... Ng4 {[%clk
0:02:51.6]} 7. Bb5 {[%clk 0:02:39]} 7... Nxe3 {[%clk 0:02:44.6]} 8. fxe3 {[%clk
0:02:39.9]} 8... Bd7 {[%clk 0:02:42.6]} 9. O-O {[%clk 0:02:35.5]} 9... e6 {[%clk
0:02:29]} 10. Qf3 {[%clk 0:02:31.4]} 10... Ne5 {[%clk 0:02:15.8]} 11. Qg3 {[%clk
0:02:16.6]} 11... a6 {[%clk 0:02:05.6]} 12. Bd3 {[%clk 0:01:38.9]} 12... h5
{[%clk 0:01:45.1]} 13. Rf2 {[%clk 0:01:34.4]} 13... h4 {[%clk 0:01:42.3]} 14.
Qh3 {[%clk 0:01:34.1]} 14... Be7 {[%clk 0:01:38]} 15. Raf1 {[%clk 0:01:32.8]}
15... Bf6 {[%clk 0:01:35.7]} 16. g4 {[%clk 0:01:25.1]} 16... Qe7 {[%clk
0:01:21.1]} 17. Nce2 {[%clk 0:01:15]} 17... O-O-O {[%clk 0:01:06.3]} 18. Nf4
{[%clk 0:01:12.5]} 18... Bg5 {[%clk 0:01:00.4]} 19. Qg2 {[%clk 0:01:00.5]} 19...
Kb8 {[%clk 0:00:48]} 20. h3 {[%clk 0:00:53.1]} 20... Rhf8 {[%clk 0:00:40.8]} 21.
Kh1 {[%clk 0:00:51.3]} 21... Bc6 {[%clk 0:00:35.6]} 22. Kh2 {[%clk 0:00:46.9]}
22... g6 {[%clk 0:00:30.7]} 23. Re2 {[%clk 0:00:44.2]} 23... Ka8 {[%clk
0:00:27.9]} 24. Qf2 {[%clk 0:00:42.4]} 24... d5 {[%clk 0:00:23.5]} 25. exd5
{[%clk 0:00:39.5]} 25... Nxd3 {[%clk 0:00:21.1]} 26. cxd3 {[%clk 0:00:37.4]}
26... Bxd5 {[%clk 0:00:21.2]} 27. Nf3 {[%clk 0:00:32.6]} 27... Bxf4+ {[%clk
0:00:19.1]} 28. exf4 {[%clk 0:00:32.7]} 28... Qc7 {[%clk 0:00:16.2]} 29. Ne5
{[%clk 0:00:31]} 29... Bxa2 {[%clk 0:00:14.6]} 30. Qxh4 {[%clk 0:00:29.5]} 30...
Rd4 {[%clk 0:00:09.7]} 31. Qf2 {[%clk 0:00:28]} 31... Qd6 {[%clk 0:00:07.9]} 32.
Rc1 {[%clk 0:00:22.8]} 32... Bb3 {[%clk 0:00:05.9]} 33. Rc3 {[%clk 0:00:22.2]}
33... Bd5 {[%clk 0:00:05.7]} 34. Qxd4 {[%clk 0:00:21.8]} 1-0

[Event "Early-Titled-Tuesday-Blitz-January-23-2024"]
[Site "Chess.com"]
[Date "2024.01.23"]
[Round "9"]
[White "kleinebeer98"]
[Black "Fandorine"]
[Result "1/2-1/2"]
[WhiteElo "2884"]
[BlackElo "2980"]
[TimeControl "180+1"]
[EndTime "9:45:23 PST"]
[Termination "Game drawn by agreement"]

1. e4 {[%clk 0:03:00.9]} 1... e5 {[%clk 0:03:00.6]} 2. Nc3 {[%clk 0:03:00.5]}
2... Nf6 {[%clk 0:03:00.2]} 3. f4 {[%clk 0:03:01.1]} 3... d5 {[%clk 0:02:58.4]}
4. fxe5 {[%clk 0:03:01.8]} 4... Nxe4 {[%clk 0:02:58.8]} 5. Nf3 {[%clk
0:03:02.5]} 5... Bf5 {[%clk 0:02:51.2]} 6. Be2 {[%clk 0:02:50.5]} 6... Be7
{[%clk 0:02:46.3]} 7. O-O {[%clk 0:02:48.2]} 7... O-O {[%clk 0:02:46.9]} 8. d4
{[%clk 0:02:45.6]} 8... c5 {[%clk 0:02:44]} 9. Be3 {[%clk 0:02:44.4]} 9... Nc6
{[%clk 0:02:34.9]} 10. dxc5 {[%clk 0:02:18.5]} 10... Nxc3 {[%clk 0:02:28.6]} 11.
bxc3 {[%clk 0:02:19.4]} 11... Qa5 {[%clk 0:02:28.9]} 12. Nd4 {[%clk 0:02:16]}
12... Bg6 {[%clk 0:02:24.8]} 13. Rb1 {[%clk 0:02:02.5]} 13... Bxc5 {[%clk
0:01:20.3]} 14. Rxb7 {[%clk 0:02:00.4]} 14... Nxe5 {[%clk 0:00:42.5]} 15. Kh1
{[%clk 0:01:48.3]} 15... Qxa2 {[%clk 0:00:36.1]} 16. Rb5 {[%clk 0:01:45.1]}
16... Rac8 {[%clk 0:00:31.6]} 17. h4 {[%clk 0:01:41.1]} 17... Nc4 {[%clk
0:00:26.8]} 18. Bg1 {[%clk 0:01:36.7]} 18... Bxd4 {[%clk 0:00:15.5]} 19. Bxd4
{[%clk 0:01:25.9]} 19... Qxc2 {[%clk 0:00:16]} 20. h5 {[%clk 0:01:06.2]} 20...
Qxd1 {[%clk 0:00:15.9]} 21. Bxd1 {[%clk 0:01:00.7]} 21... Bd3 {[%clk 0:00:15.8]}
22. Rf3 {[%clk 0:00:59.5]} 22... Be4 {[%clk 0:00:11.9]} 23. Rg3 {[%clk
0:01:00.2]} 23... g6 {[%clk 0:00:12.4]} 24. hxg6 {[%clk 0:00:57.2]} 24... fxg6
{[%clk 0:00:11.1]} 25. Bg4 {[%clk 0:00:56]} 25... Rce8 {[%clk 0:00:09.6]} 26.
Bd7 {[%clk 0:00:50.1]} 26... Re7 {[%clk 0:00:07.4]} 27. Bc6 {[%clk 0:00:50.6]}
27... a6 {[%clk 0:00:06.3]} 28. Rxd5 {[%clk 0:00:48.2]} 28... Rc8 {[%clk
0:00:06.3]} 29. Rd7 {[%clk 0:00:43.6]} 29... Rxd7 {[%clk 0:00:04.4]} 30. Bxd7
{[%clk 0:00:44.5]} 30... Rc7 {[%clk 0:00:04.6]} 31. Be6+ {[%clk 0:00:45.2]}
31... Kf8 {[%clk 0:00:04.8]} 32. Rg4 {[%clk 0:00:39.7]} 32... Bf5 {[%clk
0:00:05.1]} 33. Rf4 {[%clk 0:00:33.5]} 33... Nd6 {[%clk 0:00:05]} 34. Be5 {[%clk
0:00:32.3]} 34... Ke7 {[%clk 0:00:05.7]} 35. Bxf5 {[%clk 0:00:25]} 35... gxf5
{[%clk 0:00:06.6]} 36. Bxd6+ {[%clk 0:00:25.7]} 36... Kxd6 {[%clk 0:00:07.5]}
37. Rxf5 {[%clk 0:00:26.4]} 37... Rxc3 {[%clk 0:00:07.5]} 38. Rf6+ {[%clk
0:00:27]} 38... Ke5 {[%clk 0:00:07.9]} 39. Rxa6 {[%clk 0:00:27.9]} 39... Rc7
{[%clk 0:00:06.1]} 40. Kh2 {[%clk 0:00:26.4]} 40... Kf5 {[%clk 0:00:05.6]}
1/2-1/2

[Event "Early-Titled-Tuesday-Blitz-January-23-2024"]
[Site "Chess.com"]
[Date "2024.01.23"]
[Round "9"]
[White "FairChess_on_YouTube"]
[Black "tandaleo"]
[Result "1-0"]
[WhiteElo "3079"]
[BlackElo "2559"]
[TimeControl "180+1"]
[EndTime "9:45:26 PST"]
[Termination "FairChess_on_YouTube won by resignation"]

1. e4 {[%clk 0:03:00.9]} 1... e5 {[%clk 0:03:00.2]} 2. f4 {[%clk 0:03:00.9]}
2... exf4 {[%clk 0:02:58.6]} 3. d4 {[%clk 0:02:59.3]} 3... d5 {[%clk 0:02:40.3]}
4. exd5 {[%clk 0:02:52.4]} 4... Qh4+ {[%clk 0:02:34.2]} 5. Ke2 {[%clk
0:02:52.2]} 5... Bg4+ {[%clk 0:02:28.1]} 6. Nf3 {[%clk 0:02:52.4]} 6... Bd6
{[%clk 0:02:26.9]} 7. Qe1 {[%clk 0:02:43.6]} 7... Qh5 {[%clk 0:02:16.4]} 8. c4
{[%clk 0:02:34.8]} 8... Nd7 {[%clk 0:01:50.3]} 9. Kf2+ {[%clk 0:02:19.1]} 9...
Ne7 {[%clk 0:01:50]} 10. Be2 {[%clk 0:02:18.4]} 10... O-O-O {[%clk 0:01:38.9]}
11. Nc3 {[%clk 0:02:18.1]} 11... g5 {[%clk 0:01:35.2]} 12. Nb5 {[%clk
0:02:10.4]} 12... Nf5 {[%clk 0:01:28.9]} 13. Nxa7+ {[%clk 0:02:01.3]} 13... Kb8
{[%clk 0:01:28.7]} 14. Nb5 {[%clk 0:02:01.9]} 14... Bxf3 {[%clk 0:00:55.1]} 15.
Bxf3 {[%clk 0:01:59]} 15... Qh4+ {[%clk 0:00:55.2]} 16. Kf1 {[%clk 0:01:41.8]}
16... Ng3+ {[%clk 0:00:55.2]} 17. Kg1 {[%clk 0:01:41.2]} 17... Nxh1 {[%clk
0:00:44.5]} 18. Qxh4 {[%clk 0:01:38.8]} 18... gxh4 {[%clk 0:00:43.5]} 19. c5
{[%clk 0:01:26.8]} 19... Nxc5 {[%clk 0:00:13.6]} 20. Nxd6 {[%clk 0:01:24.5]}
20... cxd6 {[%clk 0:00:14.1]} 21. dxc5 {[%clk 0:01:24.3]} 21... dxc5 {[%clk
0:00:14]} 22. Bxf4+ {[%clk 0:01:24.1]} 22... Ka8 {[%clk 0:00:13.9]} 23. Kxh1
{[%clk 0:01:21.9]} 23... h3 {[%clk 0:00:12.6]} 24. Bc7 {[%clk 0:01:16.6]} 24...
Rd7 {[%clk 0:00:10.5]} 25. d6 {[%clk 0:01:17]} 25... hxg2+ {[%clk 0:00:08.3]}
26. Kxg2 {[%clk 0:01:17.9]} 26... Rc8 {[%clk 0:00:07.5]} 27. Re1 {[%clk
0:00:50.7]} 27... Rcxc7 {[%clk 0:00:06.7]} 28. dxc7 {[%clk 0:00:51.1]} 28...
Rxc7 {[%clk 0:00:07.6]} 29. Re8+ {[%clk 0:00:51.1]} 29... Ka7 {[%clk 0:00:08.2]}
30. Rh8 {[%clk 0:00:51.4]} 30... f6 {[%clk 0:00:07.5]} 31. Be4 {[%clk
0:00:50.1]} 31... Rd7 {[%clk 0:00:06.4]} 32. Rxh7 {[%clk 0:00:44.2]} 32... Rd2+
{[%clk 0:00:06.7]} 33. Kf3 {[%clk 0:00:44.8]} 33... Rxb2 {[%clk 0:00:07.6]} 34.
h4 {[%clk 0:00:45.4]} 34... c4 {[%clk 0:00:07.2]} 35. Rc7 {[%clk 0:00:40.7]}
35... Rh2 {[%clk 0:00:05.6]} 36. Kg3 {[%clk 0:00:38.6]} 36... Rxa2 {[%clk
0:00:05.7]} 37. h5 {[%clk 0:00:36.1]} 37... Kb8 {[%clk 0:00:04.6]} 38. Rxb7+
{[%clk 0:00:33.8]} 38... Kc8 {[%clk 0:00:05]} 39. h6 {[%clk 0:00:34.3]} 39...
Ra5 {[%clk 0:00:03.1]} 40. h7 {[%clk 0:00:31.6]} 40... Rh5 {[%clk 0:00:03.5]}
41. Ra7 {[%clk 0:00:31.4]} 1-0

[Event "Early-Titled-Tuesday-Blitz-January-23-2024"]
[Site "Chess.com"]
[Date "2024.01.23"]
[Round "9"]
[White "m_ezat"]
[Black "sonicdravise"]
[Result "1-0"]
[WhiteElo "2468"]
[BlackElo "2610"]
[TimeControl "180+1"]
[EndTime "9:45:27 PST"]
[Termination "m_ezat won by resignation"]

1. d4 {[%clk 0:02:47.4]} 1... d5 {[%clk 0:02:56.2]} 2. c4 {[%clk 0:02:11.7]}
2... c6 {[%clk 0:02:55.2]} 3. Nc3 {[%clk 0:02:10.6]} 3... Nf6 {[%clk 0:02:54.9]}
4. cxd5 {[%clk 0:02:10.2]} 4... cxd5 {[%clk 0:02:54.9]} 5. Bf4 {[%clk
0:02:10.4]} 5... Nc6 {[%clk 0:02:54.5]} 6. e3 {[%clk 0:02:05.6]} 6... a6 {[%clk
0:02:54.6]} 7. Bd3 {[%clk 0:02:02.9]} 7... Bg4 {[%clk 0:02:54.2]} 8. Nge2 {[%clk
0:01:59.1]} 8... e6 {[%clk 0:02:53.4]} 9. O-O {[%clk 0:01:56.9]} 9... Bd6 {[%clk
0:02:53.1]} 10. f3 {[%clk 0:01:56.2]} 10... Bh5 {[%clk 0:02:53.4]} 11. Rc1
{[%clk 0:01:56.7]} 11... O-O {[%clk 0:02:48.4]} 12. Na4 {[%clk 0:01:56.9]} 12...
e5 {[%clk 0:02:14.3]} 13. dxe5 {[%clk 0:01:51.2]} 13... Nxe5 {[%clk 0:02:12.2]}
14. Nc5 {[%clk 0:01:50]} 14... Qe7 {[%clk 0:02:04.1]} 15. Nb3 {[%clk 0:01:45.9]}
15... Rfe8 {[%clk 0:01:55.4]} 16. Nbd4 {[%clk 0:01:38.6]} 16... Nxd3 {[%clk
0:01:42.7]} 17. Qxd3 {[%clk 0:01:37.7]} 17... Bg6 {[%clk 0:01:40.8]} 18. Qd2
{[%clk 0:01:33.3]} 18... Nh5 {[%clk 0:01:15.4]} 19. Bxd6 {[%clk 0:01:30]} 19...
Qxd6 {[%clk 0:01:16.3]} 20. Rc3 {[%clk 0:01:29]} 20... Rac8 {[%clk 0:01:05.4]}
21. Rfc1 {[%clk 0:01:27.9]} 21... Rxc3 {[%clk 0:01:05.2]} 22. Rxc3 {[%clk
0:01:27.7]} 22... h6 {[%clk 0:01:03.6]} 23. Nf4 {[%clk 0:01:25]} 23... Nxf4
{[%clk 0:00:56.9]} 24. exf4 {[%clk 0:01:24.6]} 24... Qb6 {[%clk 0:00:53.8]} 25.
h4 {[%clk 0:01:16]} 25... f6 {[%clk 0:00:40.3]} 26. Kh2 {[%clk 0:01:09.5]} 26...
Qd6 {[%clk 0:00:39.3]} 27. g3 {[%clk 0:01:07.6]} 27... Kh7 {[%clk 0:00:34.2]}
28. Kg2 {[%clk 0:01:05.2]} 28... Qe7 {[%clk 0:00:31.3]} 29. Kf2 {[%clk
0:01:04.2]} 29... Qd7 {[%clk 0:00:29.7]} 30. g4 {[%clk 0:00:56.4]} 30... Kh8
{[%clk 0:00:26.7]} 31. h5 {[%clk 0:00:55.3]} 31... Bh7 {[%clk 0:00:26.9]} 32.
Re3 {[%clk 0:00:54.4]} 32... Rc8 {[%clk 0:00:23.2]} 33. Qe2 {[%clk 0:00:48.6]}
33... Kg8 {[%clk 0:00:19]} 34. Re7 {[%clk 0:00:48]} 34... Qa4 {[%clk 0:00:17.2]}
35. Qe6+ {[%clk 0:00:46.1]} 35... Kh8 {[%clk 0:00:16]} 36. Qxc8+ {[%clk
0:00:46.1]} 36... Bg8 {[%clk 0:00:16.5]} 37. Qc3 {[%clk 0:00:44.1]} 37... Qd1
{[%clk 0:00:14.4]} 38. Re1 {[%clk 0:00:42.5]} 38... Qa4 {[%clk 0:00:14.3]} 39.
Kg3 {[%clk 0:00:37.7]} 39... Qd7 {[%clk 0:00:13.5]} 40. b3 {[%clk 0:00:36]}
40... f5 {[%clk 0:00:13.7]} 41. Nxf5 {[%clk 0:00:34.8]} 41... Be6 {[%clk
0:00:13]} 42. Rxe6 {[%clk 0:00:32.2]} 42... d4 {[%clk 0:00:13.6]} 43. Qxd4
{[%clk 0:00:31.2]} 1-0

[Event "Early-Titled-Tuesday-Blitz-January-23-2024"]
[Site "Chess.com"]
[Date "2024.01.23"]
[Round "9"]
[White "HeroWilczek"]
[Black "Dinosaurio_1975"]
[Result "0-1"]
[WhiteElo "2468"]
[BlackElo "2660"]
[TimeControl "180+1"]
[EndTime "9:45:29 PST"]
[Termination "Dinosaurio_1975 won by checkmate"]

1. e4 {[%clk 0:03:00.9]} 1... c6 {[%clk 0:02:59.1]} 2. d4 {[%clk 0:03:00.1]}
2... d5 {[%clk 0:03:00]} 3. Nc3 {[%clk 0:02:59.7]} 3... dxe4 {[%clk 0:03:00]} 4.
Nxe4 {[%clk 0:03:00.6]} 4... Nf6 {[%clk 0:03:00.5]} 5. Nxf6+ {[%clk 0:03:00.5]}
5... exf6 {[%clk 0:03:01.4]} 6. c3 {[%clk 0:03:00.3]} 6... Bd6 {[%clk
0:03:02.3]} 7. Bd3 {[%clk 0:02:59.1]} 7... O-O {[%clk 0:03:03.2]} 8. Ne2 {[%clk
0:02:58.8]} 8... Re8 {[%clk 0:03:04.1]} 9. O-O {[%clk 0:02:58.4]} 9... Na6
{[%clk 0:03:03.7]} 10. Re1 {[%clk 0:02:55.9]} 10... Nc7 {[%clk 0:03:02.8]} 11.
h3 {[%clk 0:02:55.5]} 11... Nd5 {[%clk 0:02:57.4]} 12. Qc2 {[%clk 0:02:46.5]}
12... g6 {[%clk 0:02:56.4]} 13. Bd2 {[%clk 0:02:45.9]} 13... f5 {[%clk
0:02:48.6]} 14. c4 {[%clk 0:02:45.5]} 14... Nf6 {[%clk 0:02:48.2]} 15. Nc3
{[%clk 0:02:39]} 15... Be6 {[%clk 0:02:33.6]} 16. Rad1 {[%clk 0:02:36.6]} 16...
f4 {[%clk 0:02:15.7]} 17. Ne4 {[%clk 0:02:28.3]} 17... f3 {[%clk 0:02:00.8]} 18.
Bg5 {[%clk 0:02:11.2]} 18... Be7 {[%clk 0:01:58.5]} 19. d5 {[%clk 0:01:44.3]}
19... cxd5 {[%clk 0:01:44.1]} 20. cxd5 {[%clk 0:01:45.2]} 20... Nxd5 {[%clk
0:01:42.9]} 21. Bxe7 {[%clk 0:01:40.8]} 21... Qxe7 {[%clk 0:01:42.3]} 22. Bc4
{[%clk 0:01:21.8]} 22... Rac8 {[%clk 0:01:37.6]} 23. Qb3 {[%clk 0:01:21.2]}
23... Nf4 {[%clk 0:00:42.5]} 24. Bxe6 {[%clk 0:01:18.6]} 24... Qxe6 {[%clk
0:00:42.1]} 25. Qxf3 {[%clk 0:01:17.4]} 25... Nh5 {[%clk 0:00:24.8]} 26. g4
{[%clk 0:01:07]} 26... Rcd8 {[%clk 0:00:09.7]} 27. Rxd8 {[%clk 0:01:03.2]} 27...
Rxd8 {[%clk 0:00:10.6]} 28. gxh5 {[%clk 0:01:01.5]} 28... f5 {[%clk 0:00:10.5]}
29. hxg6 {[%clk 0:00:53.3]} 29... hxg6 {[%clk 0:00:09.1]} 30. Qb3 {[%clk
0:00:36.7]} 30... Qxb3 {[%clk 0:00:08.5]} 31. axb3 {[%clk 0:00:37.6]} 31... fxe4
{[%clk 0:00:08.9]} 32. Rxe4 {[%clk 0:00:36.6]} 32... Kf7 {[%clk 0:00:09.5]} 33.
Rc4 {[%clk 0:00:34.7]} 33... Rd7 {[%clk 0:00:07.3]} 34. Kg2 {[%clk 0:00:35.1]}
34... Kf6 {[%clk 0:00:07.5]} 35. Kg3 {[%clk 0:00:34.3]} 35... Rd3+ {[%clk
0:00:07.4]} 36. f3 {[%clk 0:00:33.9]} 36... Rxb3 {[%clk 0:00:07.8]} 37. Rc2
{[%clk 0:00:34.3]} 37... b5 {[%clk 0:00:08.1]} 38. h4 {[%clk 0:00:34.7]} 38...
a5 {[%clk 0:00:08.2]} 39. Kg4 {[%clk 0:00:31.5]} 39... Rb4+ {[%clk 0:00:06.1]}
40. f4 {[%clk 0:00:31.1]} 40... Rb3 {[%clk 0:00:05.1]} 41. Rc6+ {[%clk 0:00:31]}
41... Kg7 {[%clk 0:00:05.6]} 42. Kg5 {[%clk 0:00:29]} 42... Rg3# {[%clk
0:00:04.8]} 0-1

[Event "Early-Titled-Tuesday-Blitz-January-23-2024"]
[Site "Chess.com"]
[Date "2024.01.23"]
[Round "9"]
[White "KevinGeorgeMicheal"]
[Black "Ural_bogatyr"]
[Result "0-1"]
[WhiteElo "2350"]
[BlackElo "2534"]
[TimeControl "180+1"]
[EndTime "9:45:32 PST"]
[Termination "Ural_bogatyr won on time"]

1. d4 {[%clk 0:03:00.9]} 1... Nf6 {[%clk 0:02:34.6]} 2. Nf3 {[%clk 0:02:54.4]}
2... d5 {[%clk 0:02:34.2]} 3. c4 {[%clk 0:02:52.1]} 3... e6 {[%clk 0:02:34.4]}
4. Nc3 {[%clk 0:02:51.8]} 4... c5 {[%clk 0:02:31.9]} 5. cxd5 {[%clk 0:02:50.6]}
5... cxd4 {[%clk 0:02:30.1]} 6. Qxd4 {[%clk 0:02:48.6]} 6... exd5 {[%clk
0:02:30.7]} 7. Bg5 {[%clk 0:02:43.2]} 7... Be7 {[%clk 0:02:31.1]} 8. e3 {[%clk
0:02:41.2]} 8... O-O {[%clk 0:02:29.8]} 9. Bd3 {[%clk 0:02:39.8]} 9... h6 {[%clk
0:02:29]} 10. Bh4 {[%clk 0:02:37.5]} 10... Nc6 {[%clk 0:02:29.4]} 11. Qa4 {[%clk
0:02:35.9]} 11... a6 {[%clk 0:02:28]} 12. O-O {[%clk 0:02:33.9]} 12... b5 {[%clk
0:02:28.1]} 13. Bxb5 {[%clk 0:02:28.9]} 13... axb5 {[%clk 0:02:27.6]} 14. Qxa8
{[%clk 0:02:28.5]} 14... Qb6 {[%clk 0:02:25.7]} 15. Bxf6 {[%clk 0:02:24.3]}
15... Be6 {[%clk 0:02:23.7]} 16. Qxf8+ {[%clk 0:02:08]} 16... Bxf8 {[%clk
0:02:24.6]} 17. Bd4 {[%clk 0:02:07.3]} 17... Nxd4 {[%clk 0:02:22.3]} 18. Nxd4
{[%clk 0:02:06.9]} 18... Bc5 {[%clk 0:02:22]} 19. Ncxb5 {[%clk 0:02:04.2]} 19...
Bd7 {[%clk 0:02:20.8]} 20. a4 {[%clk 0:02:03.4]} 20... Qa5 {[%clk 0:02:17.5]}
21. Rfc1 {[%clk 0:01:58.8]} 21... Qb4 {[%clk 0:02:15.3]} 22. b3 {[%clk
0:01:24.7]} 22... g6 {[%clk 0:02:06.9]} 23. Rab1 {[%clk 0:01:01.3]} 23... h5
{[%clk 0:01:58]} 24. Nc2 {[%clk 0:00:52.7]} 24... Qd2 {[%clk 0:01:57.5]} 25. b4
{[%clk 0:00:45]} 25... Bxb5 {[%clk 0:01:56.8]} 26. axb5 {[%clk 0:00:42.6]} 26...
Bb6 {[%clk 0:01:56.2]} 27. Ne1 {[%clk 0:00:29.4]} 27... d4 {[%clk 0:01:54.3]}
28. Nf3 {[%clk 0:00:26.7]} 28... Qd3 {[%clk 0:01:51.4]} 29. Nxd4 {[%clk
0:00:25.6]} 29... h4 {[%clk 0:01:51.6]} 30. Rd1 {[%clk 0:00:24]} 30... Qc4
{[%clk 0:01:49.3]} 31. h3 {[%clk 0:00:21.3]} 31... f5 {[%clk 0:01:48.5]} 32.
Rdc1 {[%clk 0:00:16.6]} 32... Qd3 {[%clk 0:01:48.6]} 33. Rb2 {[%clk 0:00:14.2]}
33... f4 {[%clk 0:01:48.4]} 34. Rc8+ {[%clk 0:00:11.2]} 34... Kh7 {[%clk
0:01:47.3]} 35. Rc6 {[%clk 0:00:10.7]} 35... fxe3 {[%clk 0:01:41.1]} 36. Rxb6
{[%clk 0:00:10]} 36... Qxd4 {[%clk 0:01:34.5]} 37. Rb7+ {[%clk 0:00:09.9]} 37...
Kh6 {[%clk 0:01:34.4]} 38. Rb1 {[%clk 0:00:08.3]} 38... exf2+ {[%clk 0:01:33.2]}
39. Kh1 {[%clk 0:00:08.1]} 39... Qe4 {[%clk 0:01:31]} 40. Rf1 {[%clk 0:00:07.4]}
40... Qe2 {[%clk 0:01:26.4]} 41. Rxf2 {[%clk 0:00:06.7]} 41... Qxf2 {[%clk
0:01:26.9]} 42. b6 {[%clk 0:00:05.7]} 42... Qe1+ {[%clk 0:01:23.8]} 43. Kh2
{[%clk 0:00:05.7]} 43... Qe5+ {[%clk 0:01:24.4]} 44. Kh1 {[%clk 0:00:04.9]}
44... Qe1+ {[%clk 0:01:25.1]} 45. Kh2 {[%clk 0:00:04.9]} 45... Qxb4 {[%clk
0:01:26]} 46. Rc7 {[%clk 0:00:02.6]} 46... Qxb6 {[%clk 0:01:24.1]} 47. Rc4
{[%clk 0:00:02.4]} 47... Qd6+ {[%clk 0:01:22.5]} 48. Kh1 {[%clk 0:00:01.4]}
48... Qd1+ {[%clk 0:01:16.9]} 49. Kh2 {[%clk 0:00:01.7]} 49... Kh5 {[%clk
0:01:17.2]} 50. Rg4 {[%clk 0:00:01.4]} 50... Qe1 {[%clk 0:01:13.8]} 0-1